{"text_format":"3","workbook":"xlsx","n_sheets":5,"sheets":["Vuosi tähän päivään -yhteenveto","1. n.","2. n.","3. n.","4. n."],"not_rendered":{"defined_names":12},"read":"whole","date_system":"1900"}

{"sheet":"Vuosi tähän päivään -yhteenveto","index":0,"n_rows":36,"n_cols":12,"rows_kept":36,"merged":[[3,0,3,6]]}
["Yrityksen nimi"]
["Osallistumisen seuranta, vuosi tähän päivään asti -yhteenveto "]
["Päivämäärä"]
[{"$f":"Yrityksen_nimi","v":"Yrityksen nimi"},{"$nulls":6},"LUOTTAMUKSELLINEN"]
["Sukunimi","Etunimi","Lomalla","Henkilökohtaiset","Sairaana","Henkilötunnus","Asema","Valvoja","Aloittanut","Kommentit","Lomapäivät \nvuodessa","Lomapäivät \njäljellä olevat"]
["Sukunimi","Etunimi",{"$f":"SUM('1. n.:4. n.'!C6)","v":3},{"$f":"SUM('1. n.:4. n.'!D6)","v":0},{"$f":"SUM('1. n.:4. n.'!E6)","v":1},"xxx-xx-xxxx","Esimies","Nimi",null,null,10,{"$f":"K6-C6","v":7}]
[null,null,{"$f":"SUM('1. n.:4. n.'!C7)","v":0},{"$f":"SUM('1. n.:4. n.'!D7)","v":0},{"$f":"SUM('1. n.:4. n.'!E7)","v":0},{"$nulls":6},{"$f":"K7-C7","v":0}]
[null,null,{"$f":"SUM('1. n.:4. n.'!C8)","v":0},{"$f":"SUM('1. n.:4. n.'!D8)","v":0},{"$f":"SUM('1. n.:4. n.'!E8)","v":0},{"$nulls":6},0]
[null,null,{"$f":"SUM('1. n.:4. n.'!C9)","v":0},{"$f":"SUM('1. n.:4. n.'!D9)","v":0},{"$f":"SUM('1. n.:4. n.'!E9)","v":0},{"$nulls":6},0]
[null,null,{"$f":"SUM('1. n.:4. n.'!C10)","v":0},{"$f":"SUM('1. n.:4. n.'!D10)","v":0},{"$f":"SUM('1. n.:4. n.'!E10)","v":0},{"$nulls":6},0]
[null,null,{"$f":"SUM('1. n.:4. n.'!C11)","v":0},{"$f":"SUM('1. n.:4. n.'!D11)","v":0},{"$f":"SUM('1. n.:4. n.'!E11)","v":0},{"$nulls":6},0]
[null,null,{"$f":"SUM('1. n.:4. n.'!C12)","v":0},{"$f":"SUM('1. n.:4. n.'!D12)","v":0},{"$f":"SUM('1. n.:4. n.'!E12)","v":0},{"$nulls":6},0]
[null,null,{"$f":"SUM('1. n.:4. n.'!C13)","v":0},{"$f":"SUM('1. n.:4. n.'!D13)","v":0},{"$f":"SUM('1. n.:4. n.'!E13)","v":0},{"$nulls":6},0]
[null,null,{"$f":"SUM('1. n.:4. n.'!C14)","v":0},{"$f":"SUM('1. n.:4. n.'!D14)","v":0},{"$f":"SUM('1. n.:4. n.'!E14)","v":0},{"$nulls":6},0]
[null,null,{"$f":"SUM('1. n.:4. n.'!C15)","v":0},{"$f":"SUM('1. n.:4. n.'!D15)","v":0},{"$f":"SUM('1. n.:4. n.'!E15)","v":0},{"$nulls":6},0]
[null,null,{"$f":"SUM('1. n.:4. n.'!C16)","v":0},{"$f":"SUM('1. n.:4. n.'!D16)","v":0},{"$f":"SUM('1. n.:4. n.'!E16)","v":0},{"$nulls":6},0]
[null,null,{"$f":"SUM('1. n.:4. n.'!C17)","v":0},{"$f":"SUM('1. n.:4. n.'!D17)","v":0},{"$f":"SUM('1. n.:4. n.'!E17)","v":0},{"$nulls":6},0]
[null,null,{"$f":"SUM('1. n.:4. n.'!C18)","v":0},{"$f":"SUM('1. n.:4. n.'!D18)","v":0},{"$f":"SUM('1. n.:4. n.'!E18)","v":0},{"$nulls":6},0]
[null,null,{"$f":"SUM('1. n.:4. n.'!C19)","v":0},{"$f":"SUM('1. n.:4. n.'!D19)","v":0},{"$f":"SUM('1. n.:4. n.'!E19)","v":0},{"$nulls":6},0]
[null,null,{"$f":"SUM('1. n.:4. n.'!C20)","v":0},{"$f":"SUM('1. n.:4. n.'!D20)","v":0},{"$f":"SUM('1. n.:4. n.'!E20)","v":0},{"$nulls":6},0]
[null,null,{"$f":"SUM('1. n.:4. n.'!C21)","v":0},{"$f":"SUM('1. n.:4. n.'!D21)","v":0},{"$f":"SUM('1. n.:4. n.'!E21)","v":0},{"$nulls":6},0]
[null,null,{"$f":"SUM('1. n.:4. n.'!C22)","v":0},{"$f":"SUM('1. n.:4. n.'!D22)","v":0},{"$f":"SUM('1. n.:4. n.'!E22)","v":0},{"$nulls":6},0]
[null,null,{"$f":"SUM('1. n.:4. n.'!C23)","v":0},{"$f":"SUM('1. n.:4. n.'!D23)","v":0},{"$f":"SUM('1. n.:4. n.'!E23)","v":0},{"$nulls":6},0]
[null,null,{"$f":"SUM('1. n.:4. n.'!C24)","v":0},{"$f":"SUM('1. n.:4. n.'!D24)","v":0},{"$f":"SUM('1. n.:4. n.'!E24)","v":0},{"$nulls":6},0]
[null,null,{"$f":"SUM('1. n.:4. n.'!C25)","v":0},{"$f":"SUM('1. n.:4. n.'!D25)","v":0},{"$f":"SUM('1. n.:4. n.'!E25)","v":0},{"$nulls":6},0]
[null,null,{"$f":"SUM('1. n.:4. n.'!C26)","v":0},{"$f":"SUM('1. n.:4. n.'!D26)","v":0},{"$f":"SUM('1. n.:4. n.'!E26)","v":0},{"$nulls":6},0]
[null,null,{"$f":"SUM('1. n.:4. n.'!C27)","v":0},{"$f":"SUM('1. n.:4. n.'!D27)","v":0},{"$f":"SUM('1. n.:4. n.'!E27)","v":0},{"$nulls":6},0]
[null,null,{"$f":"SUM('1. n.:4. n.'!C28)","v":0},{"$f":"SUM('1. n.:4. n.'!D28)","v":0},{"$f":"SUM('1. n.:4. n.'!E28)","v":0},{"$nulls":6},0]
[null,null,{"$f":"SUM('1. n.:4. n.'!C29)","v":0},{"$f":"SUM('1. n.:4. n.'!D29)","v":0},{"$f":"SUM('1. n.:4. n.'!E29)","v":0},{"$nulls":6},0]
[null,null,{"$f":"SUM('1. n.:4. n.'!C30)","v":0},{"$f":"SUM('1. n.:4. n.'!D30)","v":0},{"$f":"SUM('1. n.:4. n.'!E30)","v":0},{"$nulls":6},0]
[null,null,{"$f":"SUM('1. n.:4. n.'!C31)","v":0},{"$f":"SUM('1. n.:4. n.'!D31)","v":0},{"$f":"SUM('1. n.:4. n.'!E31)","v":0},{"$nulls":6},0]
[null,null,{"$f":"SUM('1. n.:4. n.'!C32)","v":0},{"$f":"SUM('1. n.:4. n.'!D32)","v":0},{"$f":"SUM('1. n.:4. n.'!E32)","v":0},{"$nulls":6},0]
[null,null,{"$f":"SUM('1. n.:4. n.'!C33)","v":0},{"$f":"SUM('1. n.:4. n.'!D33)","v":0},{"$f":"SUM('1. n.:4. n.'!E33)","v":0},{"$nulls":6},0]
[null,null,{"$f":"SUM('1. n.:4. n.'!C34)","v":0},{"$f":"SUM('1. n.:4. n.'!D34)","v":0},{"$f":"SUM('1. n.:4. n.'!E34)","v":0},{"$nulls":6},0]
[null,null,{"$f":"SUM('1. n.:4. n.'!C35)","v":0},{"$f":"SUM('1. n.:4. n.'!D35)","v":0},{"$f":"SUM('1. n.:4. n.'!E35)","v":0},{"$nulls":6},0]
[null,null,{"$f":"SUM('1. n.:4. n.'!C36)","v":0},{"$f":"SUM('1. n.:4. n.'!D36)","v":0},{"$f":"SUM('1. n.:4. n.'!E36)","v":0},{"$nulls":6},0]

{"sheet":"1. n.","index":1,"n_rows":36,"n_cols":95,"rows_kept":36,"merged":[[3,0,3,6]]}
[{"$f":"Yrityksen_nimi","v":"Yrityksen nimi"}]
["Osallistumisen seuranta, 1. neljännes"]
["Päivämäärä"]
[{"$f":"Yrityksen_nimi","v":"Yrityksen nimi"},{"$nulls":6},"LUOTTAMUKSELLINEN"]
["Sukunimi","Etunimi","Lomalla","Henkilökohtaiset","Sairaana","1.1.","2.1.","3.1.","4.1.","5.1.","6.1.","7.1.","8.1.","9.1.","10.1.","11.1.","12.1.","13.1.","14.1.","15.1.","16.1.","17.1.","18.1.","19.1.","20.1.","21.1.","22.1.","23.1.","24.1.","25.1.","26.1.","27.1.","28.1.","29.1.","30.1.","31.1.","1.2.","2.2.","3.2.","4.2.","5.2.","6.2.","7.2.","8.2.","9.2.","10.2.","11.2.","12.2.","13.2.","14.2.","15.2.","16.2.","17.2.","18.2.","19.2.","20.2.","21.2.","22.2.","23.2.","24.2.","25.2.","26.2.","27.2.","28.2.","1.3.","2.3.","3.3.","4.3.","5.3.","6.3.","7.3.","8.3.","9.3.","10.3.","11.3.","12.3.","13.3.","14.3.","15.3.","16.3.","17.3.","18.3.","19.3.","20.3.","21.3.","22.3.","23.3.","24.3.","25.3.","26.3.","27.3.","28.3.","29.3.","30.3.","31.3."]
[{"$f":"IF(ISBLANK('Vuosi tähän päivään -yhteenveto'!A6),\"\",'Vuosi tähän päivään -yhteenveto'!A6)","v":"Sukunimi"},{"$f":"IF(ISBLANK('Vuosi tähän päivään -yhteenveto'!B6),\"\",'Vuosi tähän päivään -yhteenveto'!B6)","v":"Etunimi"},{"$f":"COUNTIF($F6:$CQ6, \"L\")","v":3},{"$f":"COUNTIF($F6:$CQ6, \"H\")","v":0},{"$f":"COUNTIF($F6:$CQ6, \"S\")","v":1},"l","l","l",{"$nulls":4},"s"]
[{"$f":"IF(ISBLANK('Vuosi tähän päivään -yhteenveto'!A7),\"\",'Vuosi tähän päivään -yhteenveto'!A7)","v":""},{"$f":"IF(ISBLANK('Vuosi tähän päivään -yhteenveto'!B7),\"\",'Vuosi tähän päivään -yhteenveto'!B7)","v":""},0,0,0]
[{"$f":"IF(ISBLANK('Vuosi tähän päivään -yhteenveto'!A8),\"\",'Vuosi tähän päivään -yhteenveto'!A8)","v":""},{"$f":"IF(ISBLANK('Vuosi tähän päivään -yhteenveto'!B8),\"\",'Vuosi tähän päivään -yhteenveto'!B8)","v":""},0,0,0]
[{"$f":"IF(ISBLANK('Vuosi tähän päivään -yhteenveto'!A9),\"\",'Vuosi tähän päivään -yhteenveto'!A9)","v":""},{"$f":"IF(ISBLANK('Vuosi tähän päivään -yhteenveto'!B9),\"\",'Vuosi tähän päivään -yhteenveto'!B9)","v":""},0,0,0]
[{"$f":"IF(ISBLANK('Vuosi tähän päivään -yhteenveto'!A10),\"\",'Vuosi tähän päivään -yhteenveto'!A10)","v":""},{"$f":"IF(ISBLANK('Vuosi tähän päivään -yhteenveto'!B10),\"\",'Vuosi tähän päivään -yhteenveto'!B10)","v":""},0,0,0]
[{"$f":"IF(ISBLANK('Vuosi tähän päivään -yhteenveto'!A11),\"\",'Vuosi tähän päivään -yhteenveto'!A11)","v":""},{"$f":"IF(ISBLANK('Vuosi tähän päivään -yhteenveto'!B11),\"\",'Vuosi tähän päivään -yhteenveto'!B11)","v":""},0,0,0]
[{"$f":"IF(ISBLANK('Vuosi tähän päivään -yhteenveto'!A12),\"\",'Vuosi tähän päivään -yhteenveto'!A12)","v":""},{"$f":"IF(ISBLANK('Vuosi tähän päivään -yhteenveto'!B12),\"\",'Vuosi tähän päivään -yhteenveto'!B12)","v":""},0,0,0]
[{"$f":"IF(ISBLANK('Vuosi tähän päivään -yhteenveto'!A13),\"\",'Vuosi tähän päivään -yhteenveto'!A13)","v":""},{"$f":"IF(ISBLANK('Vuosi tähän päivään -yhteenveto'!B13),\"\",'Vuosi tähän päivään -yhteenveto'!B13)","v":""},0,0,0]
[{"$f":"IF(ISBLANK('Vuosi tähän päivään -yhteenveto'!A14),\"\",'Vuosi tähän päivään -yhteenveto'!A14)","v":""},{"$f":"IF(ISBLANK('Vuosi tähän päivään -yhteenveto'!B14),\"\",'Vuosi tähän päivään -yhteenveto'!B14)","v":""},0,0,0]
[{"$f":"IF(ISBLANK('Vuosi tähän päivään -yhteenveto'!A15),\"\",'Vuosi tähän päivään -yhteenveto'!A15)","v":""},{"$f":"IF(ISBLANK('Vuosi tähän päivään -yhteenveto'!B15),\"\",'Vuosi tähän päivään -yhteenveto'!B15)","v":""},0,0,0]
[{"$f":"IF(ISBLANK('Vuosi tähän päivään -yhteenveto'!A16),\"\",'Vuosi tähän päivään -yhteenveto'!A16)","v":""},{"$f":"IF(ISBLANK('Vuosi tähän päivään -yhteenveto'!B16),\"\",'Vuosi tähän päivään -yhteenveto'!B16)","v":""},0,0,0]
[{"$f":"IF(ISBLANK('Vuosi tähän päivään -yhteenveto'!A17),\"\",'Vuosi tähän päivään -yhteenveto'!A17)","v":""},{"$f":"IF(ISBLANK('Vuosi tähän päivään -yhteenveto'!B17),\"\",'Vuosi tähän päivään -yhteenveto'!B17)","v":""},0,0,0]
[{"$f":"IF(ISBLANK('Vuosi tähän päivään -yhteenveto'!A18),\"\",'Vuosi tähän päivään -yhteenveto'!A18)","v":""},{"$f":"IF(ISBLANK('Vuosi tähän päivään -yhteenveto'!B18),\"\",'Vuosi tähän päivään -yhteenveto'!B18)","v":""},0,0,0]
[{"$f":"IF(ISBLANK('Vuosi tähän päivään -yhteenveto'!A19),\"\",'Vuosi tähän päivään -yhteenveto'!A19)","v":""},{"$f":"IF(ISBLANK('Vuosi tähän päivään -yhteenveto'!B19),\"\",'Vuosi tähän päivään -yhteenveto'!B19)","v":""},0,0,0]
[{"$f":"IF(ISBLANK('Vuosi tähän päivään -yhteenveto'!A20),\"\",'Vuosi tähän päivään -yhteenveto'!A20)","v":""},{"$f":"IF(ISBLANK('Vuosi tähän päivään -yhteenveto'!B20),\"\",'Vuosi tähän päivään -yhteenveto'!B20)","v":""},0,0,0]
[{"$f":"IF(ISBLANK('Vuosi tähän päivään -yhteenveto'!A21),\"\",'Vuosi tähän päivään -yhteenveto'!A21)","v":""},{"$f":"IF(ISBLANK('Vuosi tähän päivään -yhteenveto'!B21),\"\",'Vuosi tähän päivään -yhteenveto'!B21)","v":""},0,0,0]
[{"$f":"IF(ISBLANK('Vuosi tähän päivään -yhteenveto'!A22),\"\",'Vuosi tähän päivään -yhteenveto'!A22)","v":""},{"$f":"IF(ISBLANK('Vuosi tähän päivään -yhteenveto'!B22),\"\",'Vuosi tähän päivään -yhteenveto'!B22)","v":""},0,0,0]
[{"$f":"IF(ISBLANK('Vuosi tähän päivään -yhteenveto'!A23),\"\",'Vuosi tähän päivään -yhteenveto'!A23)","v":""},{"$f":"IF(ISBLANK('Vuosi tähän päivään -yhteenveto'!B23),\"\",'Vuosi tähän päivään -yhteenveto'!B23)","v":""},0,0,0]
[{"$f":"IF(ISBLANK('Vuosi tähän päivään -yhteenveto'!A24),\"\",'Vuosi tähän päivään -yhteenveto'!A24)","v":""},{"$f":"IF(ISBLANK('Vuosi tähän päivään -yhteenveto'!B24),\"\",'Vuosi tähän päivään -yhteenveto'!B24)","v":""},0,0,0]
[{"$f":"IF(ISBLANK('Vuosi tähän päivään -yhteenveto'!A25),\"\",'Vuosi tähän päivään -yhteenveto'!A25)","v":""},{"$f":"IF(ISBLANK('Vuosi tähän päivään -yhteenveto'!B25),\"\",'Vuosi tähän päivään -yhteenveto'!B25)","v":""},0,0,0]
[{"$f":"IF(ISBLANK('Vuosi tähän päivään -yhteenveto'!A26),\"\",'Vuosi tähän päivään -yhteenveto'!A26)","v":""},{"$f":"IF(ISBLANK('Vuosi tähän päivään -yhteenveto'!B26),\"\",'Vuosi tähän päivään -yhteenveto'!B26)","v":""},0,0,0]
[{"$f":"IF(ISBLANK('Vuosi tähän päivään -yhteenveto'!A27),\"\",'Vuosi tähän päivään -yhteenveto'!A27)","v":""},{"$f":"IF(ISBLANK('Vuosi tähän päivään -yhteenveto'!B27),\"\",'Vuosi tähän päivään -yhteenveto'!B27)","v":""},0,0,0]
[{"$f":"IF(ISBLANK('Vuosi tähän päivään -yhteenveto'!A28),\"\",'Vuosi tähän päivään -yhteenveto'!A28)","v":""},{"$f":"IF(ISBLANK('Vuosi tähän päivään -yhteenveto'!B28),\"\",'Vuosi tähän päivään -yhteenveto'!B28)","v":""},0,0,0]
[{"$f":"IF(ISBLANK('Vuosi tähän päivään -yhteenveto'!A29),\"\",'Vuosi tähän päivään -yhteenveto'!A29)","v":""},{"$f":"IF(ISBLANK('Vuosi tähän päivään -yhteenveto'!B29),\"\",'Vuosi tähän päivään -yhteenveto'!B29)","v":""},0,0,0]
[{"$f":"IF(ISBLANK('Vuosi tähän päivään -yhteenveto'!A30),\"\",'Vuosi tähän päivään -yhteenveto'!A30)","v":""},{"$f":"IF(ISBLANK('Vuosi tähän päivään -yhteenveto'!B30),\"\",'Vuosi tähän päivään -yhteenveto'!B30)","v":""},0,0,0]
[{"$f":"IF(ISBLANK('Vuosi tähän päivään -yhteenveto'!A31),\"\",'Vuosi tähän päivään -yhteenveto'!A31)","v":""},{"$f":"IF(ISBLANK('Vuosi tähän päivään -yhteenveto'!B31),\"\",'Vuosi tähän päivään -yhteenveto'!B31)","v":""},0,0,0]
[{"$f":"IF(ISBLANK('Vuosi tähän päivään -yhteenveto'!A32),\"\",'Vuosi tähän päivään -yhteenveto'!A32)","v":""},{"$f":"IF(ISBLANK('Vuosi tähän päivään -yhteenveto'!B32),\"\",'Vuosi tähän päivään -yhteenveto'!B32)","v":""},0,0,0]
[{"$f":"IF(ISBLANK('Vuosi tähän päivään -yhteenveto'!A33),\"\",'Vuosi tähän päivään -yhteenveto'!A33)","v":""},{"$f":"IF(ISBLANK('Vuosi tähän päivään -yhteenveto'!B33),\"\",'Vuosi tähän päivään -yhteenveto'!B33)","v":""},0,0,0]
[{"$f":"IF(ISBLANK('Vuosi tähän päivään -yhteenveto'!A34),\"\",'Vuosi tähän päivään -yhteenveto'!A34)","v":""},{"$f":"IF(ISBLANK('Vuosi tähän päivään -yhteenveto'!B34),\"\",'Vuosi tähän päivään -yhteenveto'!B34)","v":""},0,0,0]
[{"$f":"IF(ISBLANK('Vuosi tähän päivään -yhteenveto'!A35),\"\",'Vuosi tähän päivään -yhteenveto'!A35)","v":""},{"$f":"IF(ISBLANK('Vuosi tähän päivään -yhteenveto'!B35),\"\",'Vuosi tähän päivään -yhteenveto'!B35)","v":""},0,0,0]
[{"$f":"IF(ISBLANK('Vuosi tähän päivään -yhteenveto'!A36),\"\",'Vuosi tähän päivään -yhteenveto'!A36)","v":""},{"$f":"IF(ISBLANK('Vuosi tähän päivään -yhteenveto'!B36),\"\",'Vuosi tähän päivään -yhteenveto'!B36)","v":""},0,0,0]

{"sheet":"2. n.","index":2,"n_rows":36,"n_cols":96,"rows_kept":36,"merged":[[3,0,3,6]]}
[{"$f":"Yrityksen_nimi","v":"Yrityksen nimi"}]
["Osallistumisen seuranta, 2. neljännes"]
["Päivämäärä"]
[{"$f":"Yrityksen_nimi","v":"Yrityksen nimi"},{"$nulls":6},"LUOTTAMUKSELLINEN"]
["Sukunimi","Etunimi","Lomalla","Henkilökohtaiset","Sairaana","1.4.","2.4.","3.4.","4.4.","5.4.","6.4.","7.4.","8.4.","9.4.","10.4.","11.4.","12.4.","13.4.","14.4.","15.4.","16.4.","17.4.","18.4.","19.4.","20.4.","21.4.","22.4.","23.4.","24.4.","25.4.","26.4.","27.4.","28.4.","29.4.","30.4.","1.5.","2.5.","3.5.","4.5.","5.5.","6.5.","7.5.","8.5.","9.5.","10.5.","11.5.","12.5.","13.5.","14.5.","15.5.","16.5.","17.5.","18.5.","19.5.","20.5.","21.5.","22.5.","23.5.","24.5.","25.5.","26.5.","27.5.","28.5.","29.5.","30.5.","31.5.","1.6.","2.6.","3.6.","4.6.","5.6.","6.6.","7.6.","8.6.","9.6.","10.6.","11.6.","12.6.","13.6.","14.6.","15.6.","16.6.","17.6.","18.6.","19.6.","20.6.","21.6.","22.6.","23.6.","24.6.","25.6.","26.6.","27.6.","28.6.","29.6.","30.6."]
[{"$f":"IF(ISBLANK('Vuosi tähän päivään -yhteenveto'!A6),\"\",'Vuosi tähän päivään -yhteenveto'!A6)","v":"Sukunimi"},{"$f":"IF(ISBLANK('Vuosi tähän päivään -yhteenveto'!B6),\"\",'Vuosi tähän päivään -yhteenveto'!B6)","v":"Etunimi"},{"$f":"COUNTIF($F6:$CR6, \"L\")","v":0},{"$f":"COUNTIF($F6:$CR6, \"H\")","v":0},{"$f":"COUNTIF($F6:$CR6, \"S\")","v":0}]
[{"$f":"IF(ISBLANK('Vuosi tähän päivään -yhteenveto'!A7),\"\",'Vuosi tähän päivään -yhteenveto'!A7)","v":""},{"$f":"IF(ISBLANK('Vuosi tähän päivään -yhteenveto'!B7),\"\",'Vuosi tähän päivään -yhteenveto'!B7)","v":""},0,0,{"$f":"COUNTIF($F7:$CR7, \"S\")","v":0}]
[{"$f":"IF(ISBLANK('Vuosi tähän päivään -yhteenveto'!A8),\"\",'Vuosi tähän päivään -yhteenveto'!A8)","v":""},{"$f":"IF(ISBLANK('Vuosi tähän päivään -yhteenveto'!B8),\"\",'Vuosi tähän päivään -yhteenveto'!B8)","v":""},0,0,0]
[{"$f":"IF(ISBLANK('Vuosi tähän päivään -yhteenveto'!A9),\"\",'Vuosi tähän päivään -yhteenveto'!A9)","v":""},{"$f":"IF(ISBLANK('Vuosi tähän päivään -yhteenveto'!B9),\"\",'Vuosi tähän päivään -yhteenveto'!B9)","v":""},0,0,0]
[{"$f":"IF(ISBLANK('Vuosi tähän päivään -yhteenveto'!A10),\"\",'Vuosi tähän päivään -yhteenveto'!A10)","v":""},{"$f":"IF(ISBLANK('Vuosi tähän päivään -yhteenveto'!B10),\"\",'Vuosi tähän päivään -yhteenveto'!B10)","v":""},0,0,0]
[{"$f":"IF(ISBLANK('Vuosi tähän päivään -yhteenveto'!A11),\"\",'Vuosi tähän päivään -yhteenveto'!A11)","v":""},{"$f":"IF(ISBLANK('Vuosi tähän päivään -yhteenveto'!B11),\"\",'Vuosi tähän päivään -yhteenveto'!B11)","v":""},0,0,0]
[{"$f":"IF(ISBLANK('Vuosi tähän päivään -yhteenveto'!A12),\"\",'Vuosi tähän päivään -yhteenveto'!A12)","v":""},{"$f":"IF(ISBLANK('Vuosi tähän päivään -yhteenveto'!B12),\"\",'Vuosi tähän päivään -yhteenveto'!B12)","v":""},0,0,0]
[{"$f":"IF(ISBLANK('Vuosi tähän päivään -yhteenveto'!A13),\"\",'Vuosi tähän päivään -yhteenveto'!A13)","v":""},{"$f":"IF(ISBLANK('Vuosi tähän päivään -yhteenveto'!B13),\"\",'Vuosi tähän päivään -yhteenveto'!B13)","v":""},0,0,0]
[{"$f":"IF(ISBLANK('Vuosi tähän päivään -yhteenveto'!A14),\"\",'Vuosi tähän päivään -yhteenveto'!A14)","v":""},{"$f":"IF(ISBLANK('Vuosi tähän päivään -yhteenveto'!B14),\"\",'Vuosi tähän päivään -yhteenveto'!B14)","v":""},0,0,0]
[{"$f":"IF(ISBLANK('Vuosi tähän päivään -yhteenveto'!A15),\"\",'Vuosi tähän päivään -yhteenveto'!A15)","v":""},{"$f":"IF(ISBLANK('Vuosi tähän päivään -yhteenveto'!B15),\"\",'Vuosi tähän päivään -yhteenveto'!B15)","v":""},0,0,0]
[{"$f":"IF(ISBLANK('Vuosi tähän päivään -yhteenveto'!A16),\"\",'Vuosi tähän päivään -yhteenveto'!A16)","v":""},{"$f":"IF(ISBLANK('Vuosi tähän päivään -yhteenveto'!B16),\"\",'Vuosi tähän päivään -yhteenveto'!B16)","v":""},0,0,0]
[{"$f":"IF(ISBLANK('Vuosi tähän päivään -yhteenveto'!A17),\"\",'Vuosi tähän päivään -yhteenveto'!A17)","v":""},{"$f":"IF(ISBLANK('Vuosi tähän päivään -yhteenveto'!B17),\"\",'Vuosi tähän päivään -yhteenveto'!B17)","v":""},0,0,0]
[{"$f":"IF(ISBLANK('Vuosi tähän päivään -yhteenveto'!A18),\"\",'Vuosi tähän päivään -yhteenveto'!A18)","v":""},{"$f":"IF(ISBLANK('Vuosi tähän päivään -yhteenveto'!B18),\"\",'Vuosi tähän päivään -yhteenveto'!B18)","v":""},0,0,0]
[{"$f":"IF(ISBLANK('Vuosi tähän päivään -yhteenveto'!A19),\"\",'Vuosi tähän päivään -yhteenveto'!A19)","v":""},{"$f":"IF(ISBLANK('Vuosi tähän päivään -yhteenveto'!B19),\"\",'Vuosi tähän päivään -yhteenveto'!B19)","v":""},0,0,0]
[{"$f":"IF(ISBLANK('Vuosi tähän päivään -yhteenveto'!A20),\"\",'Vuosi tähän päivään -yhteenveto'!A20)","v":""},{"$f":"IF(ISBLANK('Vuosi tähän päivään -yhteenveto'!B20),\"\",'Vuosi tähän päivään -yhteenveto'!B20)","v":""},0,0,0]
[{"$f":"IF(ISBLANK('Vuosi tähän päivään -yhteenveto'!A21),\"\",'Vuosi tähän päivään -yhteenveto'!A21)","v":""},{"$f":"IF(ISBLANK('Vuosi tähän päivään -yhteenveto'!B21),\"\",'Vuosi tähän päivään -yhteenveto'!B21)","v":""},0,0,0]
[{"$f":"IF(ISBLANK('Vuosi tähän päivään -yhteenveto'!A22),\"\",'Vuosi tähän päivään -yhteenveto'!A22)","v":""},{"$f":"IF(ISBLANK('Vuosi tähän päivään -yhteenveto'!B22),\"\",'Vuosi tähän päivään -yhteenveto'!B22)","v":""},0,0,0]
[{"$f":"IF(ISBLANK('Vuosi tähän päivään -yhteenveto'!A23),\"\",'Vuosi tähän päivään -yhteenveto'!A23)","v":""},{"$f":"IF(ISBLANK('Vuosi tähän päivään -yhteenveto'!B23),\"\",'Vuosi tähän päivään -yhteenveto'!B23)","v":""},0,0,0]
[{"$f":"IF(ISBLANK('Vuosi tähän päivään -yhteenveto'!A24),\"\",'Vuosi tähän päivään -yhteenveto'!A24)","v":""},{"$f":"IF(ISBLANK('Vuosi tähän päivään -yhteenveto'!B24),\"\",'Vuosi tähän päivään -yhteenveto'!B24)","v":""},0,0,0]
[{"$f":"IF(ISBLANK('Vuosi tähän päivään -yhteenveto'!A25),\"\",'Vuosi tähän päivään -yhteenveto'!A25)","v":""},{"$f":"IF(ISBLANK('Vuosi tähän päivään -yhteenveto'!B25),\"\",'Vuosi tähän päivään -yhteenveto'!B25)","v":""},0,0,0]
[{"$f":"IF(ISBLANK('Vuosi tähän päivään -yhteenveto'!A26),\"\",'Vuosi tähän päivään -yhteenveto'!A26)","v":""},{"$f":"IF(ISBLANK('Vuosi tähän päivään -yhteenveto'!B26),\"\",'Vuosi tähän päivään -yhteenveto'!B26)","v":""},0,0,0]
[{"$f":"IF(ISBLANK('Vuosi tähän päivään -yhteenveto'!A27),\"\",'Vuosi tähän päivään -yhteenveto'!A27)","v":""},{"$f":"IF(ISBLANK('Vuosi tähän päivään -yhteenveto'!B27),\"\",'Vuosi tähän päivään -yhteenveto'!B27)","v":""},0,0,0]
[{"$f":"IF(ISBLANK('Vuosi tähän päivään -yhteenveto'!A28),\"\",'Vuosi tähän päivään -yhteenveto'!A28)","v":""},{"$f":"IF(ISBLANK('Vuosi tähän päivään -yhteenveto'!B28),\"\",'Vuosi tähän päivään -yhteenveto'!B28)","v":""},0,0,0]
[{"$f":"IF(ISBLANK('Vuosi tähän päivään -yhteenveto'!A29),\"\",'Vuosi tähän päivään -yhteenveto'!A29)","v":""},{"$f":"IF(ISBLANK('Vuosi tähän päivään -yhteenveto'!B29),\"\",'Vuosi tähän päivään -yhteenveto'!B29)","v":""},0,0,0]
[{"$f":"IF(ISBLANK('Vuosi tähän päivään -yhteenveto'!A30),\"\",'Vuosi tähän päivään -yhteenveto'!A30)","v":""},{"$f":"IF(ISBLANK('Vuosi tähän päivään -yhteenveto'!B30),\"\",'Vuosi tähän päivään -yhteenveto'!B30)","v":""},0,0,0]
[{"$f":"IF(ISBLANK('Vuosi tähän päivään -yhteenveto'!A31),\"\",'Vuosi tähän päivään -yhteenveto'!A31)","v":""},{"$f":"IF(ISBLANK('Vuosi tähän päivään -yhteenveto'!B31),\"\",'Vuosi tähän päivään -yhteenveto'!B31)","v":""},0,0,0]
[{"$f":"IF(ISBLANK('Vuosi tähän päivään -yhteenveto'!A32),\"\",'Vuosi tähän päivään -yhteenveto'!A32)","v":""},{"$f":"IF(ISBLANK('Vuosi tähän päivään -yhteenveto'!B32),\"\",'Vuosi tähän päivään -yhteenveto'!B32)","v":""},0,0,0]
[{"$f":"IF(ISBLANK('Vuosi tähän päivään -yhteenveto'!A33),\"\",'Vuosi tähän päivään -yhteenveto'!A33)","v":""},{"$f":"IF(ISBLANK('Vuosi tähän päivään -yhteenveto'!B33),\"\",'Vuosi tähän päivään -yhteenveto'!B33)","v":""},0,0,0]
[{"$f":"IF(ISBLANK('Vuosi tähän päivään -yhteenveto'!A34),\"\",'Vuosi tähän päivään -yhteenveto'!A34)","v":""},{"$f":"IF(ISBLANK('Vuosi tähän päivään -yhteenveto'!B34),\"\",'Vuosi tähän päivään -yhteenveto'!B34)","v":""},0,0,0]
[{"$f":"IF(ISBLANK('Vuosi tähän päivään -yhteenveto'!A35),\"\",'Vuosi tähän päivään -yhteenveto'!A35)","v":""},{"$f":"IF(ISBLANK('Vuosi tähän päivään -yhteenveto'!B35),\"\",'Vuosi tähän päivään -yhteenveto'!B35)","v":""},0,0,0]
[{"$f":"IF(ISBLANK('Vuosi tähän päivään -yhteenveto'!A36),\"\",'Vuosi tähän päivään -yhteenveto'!A36)","v":""},{"$f":"IF(ISBLANK('Vuosi tähän päivään -yhteenveto'!B36),\"\",'Vuosi tähän päivään -yhteenveto'!B36)","v":""},0,0,0]

{"sheet":"3. n.","index":3,"n_rows":36,"n_cols":97,"rows_kept":36,"merged":[[3,0,3,6]]}
[{"$f":"Yrityksen_nimi","v":"Yrityksen nimi"}]
["Osallistumisen seuranta, 3. neljännes"]
["Päivämäärä"]
[{"$f":"Yrityksen_nimi","v":"Yrityksen nimi"},{"$nulls":6},"LUOTTAMUKSELLINEN"]
["Sukunimi","Etunimi","Lomalla","Henkilökohtaiset","Sairaana","1.7.","2.7.","3.7.","4.7.","5.7.","6.7.","7.7.","8.7.","9.7.","10.7.","11.7.","12.7.","13.7.","14.7.","15.7.","16.7.","17.7.","18.7.","19.7.","20.7.","21.7.","22.7.","23.7.","24.7.","25.7.","26.7.","27.7.","28.7.","29.7.","30.7.","31.7.","1.8.","2.8.","3.8.","4.8.","5.8.","6.8.","7.8.","8.8.","9.8.","10.8.","11.8.","12.8.","13.8.","14.8.","15.8.","16.8.","17.8.","18.8.","19.8.","20.8.","21.8.","22.8.","23.8.","24.8.","25.8.","26.8.","27.8.","28.8.","29.8.","30.8.","31.8.","1.9.","2.9.","3.9.","4.9.","5.9.","6.9.","7.9.","8.9.","9.9.","10.9.","11.9.","12.9.","13.9.","14.9.","15.9.","16.9.","17.9.","18.9.","19.9.","20.9.","21.9.","22.9.","23.9.","24.9.","25.9.","26.9.","27.9.","28.9.","29.9.","30.9."]
[{"$f":"IF(ISBLANK('Vuosi tähän päivään -yhteenveto'!A6),\"\",'Vuosi tähän päivään -yhteenveto'!A6)","v":"Sukunimi"},{"$f":"IF(ISBLANK('Vuosi tähän päivään -yhteenveto'!B6),\"\",'Vuosi tähän päivään -yhteenveto'!B6)","v":"Etunimi"},{"$f":"COUNTIF($F6:$CS6, \"L\")","v":0},{"$f":"COUNTIF($F6:$CS6, \"H\")","v":0},{"$f":"COUNTIF($F6:$CS6, \"S\")","v":0}]
[{"$f":"IF(ISBLANK('Vuosi tähän päivään -yhteenveto'!A7),\"\",'Vuosi tähän päivään -yhteenveto'!A7)","v":""},{"$f":"IF(ISBLANK('Vuosi tähän päivään -yhteenveto'!B7),\"\",'Vuosi tähän päivään -yhteenveto'!B7)","v":""},0,0,{"$f":"COUNTIF($F7:$CS7, \"S\")","v":0}]
[{"$f":"IF(ISBLANK('Vuosi tähän päivään -yhteenveto'!A8),\"\",'Vuosi tähän päivään -yhteenveto'!A8)","v":""},{"$f":"IF(ISBLANK('Vuosi tähän päivään -yhteenveto'!B8),\"\",'Vuosi tähän päivään -yhteenveto'!B8)","v":""},0,0,0]
[{"$f":"IF(ISBLANK('Vuosi tähän päivään -yhteenveto'!A9),\"\",'Vuosi tähän päivään -yhteenveto'!A9)","v":""},{"$f":"IF(ISBLANK('Vuosi tähän päivään -yhteenveto'!B9),\"\",'Vuosi tähän päivään -yhteenveto'!B9)","v":""},0,0,0]
[{"$f":"IF(ISBLANK('Vuosi tähän päivään -yhteenveto'!A10),\"\",'Vuosi tähän päivään -yhteenveto'!A10)","v":""},{"$f":"IF(ISBLANK('Vuosi tähän päivään -yhteenveto'!B10),\"\",'Vuosi tähän päivään -yhteenveto'!B10)","v":""},0,0,0]
[{"$f":"IF(ISBLANK('Vuosi tähän päivään -yhteenveto'!A11),\"\",'Vuosi tähän päivään -yhteenveto'!A11)","v":""},{"$f":"IF(ISBLANK('Vuosi tähän päivään -yhteenveto'!B11),\"\",'Vuosi tähän päivään -yhteenveto'!B11)","v":""},0,0,0]
[{"$f":"IF(ISBLANK('Vuosi tähän päivään -yhteenveto'!A12),\"\",'Vuosi tähän päivään -yhteenveto'!A12)","v":""},{"$f":"IF(ISBLANK('Vuosi tähän päivään -yhteenveto'!B12),\"\",'Vuosi tähän päivään -yhteenveto'!B12)","v":""},0,0,0]
[{"$f":"IF(ISBLANK('Vuosi tähän päivään -yhteenveto'!A13),\"\",'Vuosi tähän päivään -yhteenveto'!A13)","v":""},{"$f":"IF(ISBLANK('Vuosi tähän päivään -yhteenveto'!B13),\"\",'Vuosi tähän päivään -yhteenveto'!B13)","v":""},0,0,0]
[{"$f":"IF(ISBLANK('Vuosi tähän päivään -yhteenveto'!A14),\"\",'Vuosi tähän päivään -yhteenveto'!A14)","v":""},{"$f":"IF(ISBLANK('Vuosi tähän päivään -yhteenveto'!B14),\"\",'Vuosi tähän päivään -yhteenveto'!B14)","v":""},0,0,0]
[{"$f":"IF(ISBLANK('Vuosi tähän päivään -yhteenveto'!A15),\"\",'Vuosi tähän päivään -yhteenveto'!A15)","v":""},{"$f":"IF(ISBLANK('Vuosi tähän päivään -yhteenveto'!B15),\"\",'Vuosi tähän päivään -yhteenveto'!B15)","v":""},0,0,0]
[{"$f":"IF(ISBLANK('Vuosi tähän päivään -yhteenveto'!A16),\"\",'Vuosi tähän päivään -yhteenveto'!A16)","v":""},{"$f":"IF(ISBLANK('Vuosi tähän päivään -yhteenveto'!B16),\"\",'Vuosi tähän päivään -yhteenveto'!B16)","v":""},0,0,0]
[{"$f":"IF(ISBLANK('Vuosi tähän päivään -yhteenveto'!A17),\"\",'Vuosi tähän päivään -yhteenveto'!A17)","v":""},{"$f":"IF(ISBLANK('Vuosi tähän päivään -yhteenveto'!B17),\"\",'Vuosi tähän päivään -yhteenveto'!B17)","v":""},0,0,0]
[{"$f":"IF(ISBLANK('Vuosi tähän päivään -yhteenveto'!A18),\"\",'Vuosi tähän päivään -yhteenveto'!A18)","v":""},{"$f":"IF(ISBLANK('Vuosi tähän päivään -yhteenveto'!B18),\"\",'Vuosi tähän päivään -yhteenveto'!B18)","v":""},0,0,0]
[{"$f":"IF(ISBLANK('Vuosi tähän päivään -yhteenveto'!A19),\"\",'Vuosi tähän päivään -yhteenveto'!A19)","v":""},{"$f":"IF(ISBLANK('Vuosi tähän päivään -yhteenveto'!B19),\"\",'Vuosi tähän päivään -yhteenveto'!B19)","v":""},0,0,0]
[{"$f":"IF(ISBLANK('Vuosi tähän päivään -yhteenveto'!A20),\"\",'Vuosi tähän päivään -yhteenveto'!A20)","v":""},{"$f":"IF(ISBLANK('Vuosi tähän päivään -yhteenveto'!B20),\"\",'Vuosi tähän päivään -yhteenveto'!B20)","v":""},0,0,0]
[{"$f":"IF(ISBLANK('Vuosi tähän päivään -yhteenveto'!A21),\"\",'Vuosi tähän päivään -yhteenveto'!A21)","v":""},{"$f":"IF(ISBLANK('Vuosi tähän päivään -yhteenveto'!B21),\"\",'Vuosi tähän päivään -yhteenveto'!B21)","v":""},0,0,0]
[{"$f":"IF(ISBLANK('Vuosi tähän päivään -yhteenveto'!A22),\"\",'Vuosi tähän päivään -yhteenveto'!A22)","v":""},{"$f":"IF(ISBLANK('Vuosi tähän päivään -yhteenveto'!B22),\"\",'Vuosi tähän päivään -yhteenveto'!B22)","v":""},0,0,0]
[{"$f":"IF(ISBLANK('Vuosi tähän päivään -yhteenveto'!A23),\"\",'Vuosi tähän päivään -yhteenveto'!A23)","v":""},{"$f":"IF(ISBLANK('Vuosi tähän päivään -yhteenveto'!B23),\"\",'Vuosi tähän päivään -yhteenveto'!B23)","v":""},0,0,0]
[{"$f":"IF(ISBLANK('Vuosi tähän päivään -yhteenveto'!A24),\"\",'Vuosi tähän päivään -yhteenveto'!A24)","v":""},{"$f":"IF(ISBLANK('Vuosi tähän päivään -yhteenveto'!B24),\"\",'Vuosi tähän päivään -yhteenveto'!B24)","v":""},0,0,0]
[{"$f":"IF(ISBLANK('Vuosi tähän päivään -yhteenveto'!A25),\"\",'Vuosi tähän päivään -yhteenveto'!A25)","v":""},{"$f":"IF(ISBLANK('Vuosi tähän päivään -yhteenveto'!B25),\"\",'Vuosi tähän päivään -yhteenveto'!B25)","v":""},0,0,0]
[{"$f":"IF(ISBLANK('Vuosi tähän päivään -yhteenveto'!A26),\"\",'Vuosi tähän päivään -yhteenveto'!A26)","v":""},{"$f":"IF(ISBLANK('Vuosi tähän päivään -yhteenveto'!B26),\"\",'Vuosi tähän päivään -yhteenveto'!B26)","v":""},0,0,0]
[{"$f":"IF(ISBLANK('Vuosi tähän päivään -yhteenveto'!A27),\"\",'Vuosi tähän päivään -yhteenveto'!A27)","v":""},{"$f":"IF(ISBLANK('Vuosi tähän päivään -yhteenveto'!B27),\"\",'Vuosi tähän päivään -yhteenveto'!B27)","v":""},0,0,0]
[{"$f":"IF(ISBLANK('Vuosi tähän päivään -yhteenveto'!A28),\"\",'Vuosi tähän päivään -yhteenveto'!A28)","v":""},{"$f":"IF(ISBLANK('Vuosi tähän päivään -yhteenveto'!B28),\"\",'Vuosi tähän päivään -yhteenveto'!B28)","v":""},0,0,0]
[{"$f":"IF(ISBLANK('Vuosi tähän päivään -yhteenveto'!A29),\"\",'Vuosi tähän päivään -yhteenveto'!A29)","v":""},{"$f":"IF(ISBLANK('Vuosi tähän päivään -yhteenveto'!B29),\"\",'Vuosi tähän päivään -yhteenveto'!B29)","v":""},0,0,0]
[{"$f":"IF(ISBLANK('Vuosi tähän päivään -yhteenveto'!A30),\"\",'Vuosi tähän päivään -yhteenveto'!A30)","v":""},{"$f":"IF(ISBLANK('Vuosi tähän päivään -yhteenveto'!B30),\"\",'Vuosi tähän päivään -yhteenveto'!B30)","v":""},0,0,0]
[{"$f":"IF(ISBLANK('Vuosi tähän päivään -yhteenveto'!A31),\"\",'Vuosi tähän päivään -yhteenveto'!A31)","v":""},{"$f":"IF(ISBLANK('Vuosi tähän päivään -yhteenveto'!B31),\"\",'Vuosi tähän päivään -yhteenveto'!B31)","v":""},0,0,0]
[{"$f":"IF(ISBLANK('Vuosi tähän päivään -yhteenveto'!A32),\"\",'Vuosi tähän päivään -yhteenveto'!A32)","v":""},{"$f":"IF(ISBLANK('Vuosi tähän päivään -yhteenveto'!B32),\"\",'Vuosi tähän päivään -yhteenveto'!B32)","v":""},0,0,0]
[{"$f":"IF(ISBLANK('Vuosi tähän päivään -yhteenveto'!A33),\"\",'Vuosi tähän päivään -yhteenveto'!A33)","v":""},{"$f":"IF(ISBLANK('Vuosi tähän päivään -yhteenveto'!B33),\"\",'Vuosi tähän päivään -yhteenveto'!B33)","v":""},0,0,0]
[{"$f":"IF(ISBLANK('Vuosi tähän päivään -yhteenveto'!A34),\"\",'Vuosi tähän päivään -yhteenveto'!A34)","v":""},{"$f":"IF(ISBLANK('Vuosi tähän päivään -yhteenveto'!B34),\"\",'Vuosi tähän päivään -yhteenveto'!B34)","v":""},0,0,0]
[{"$f":"IF(ISBLANK('Vuosi tähän päivään -yhteenveto'!A35),\"\",'Vuosi tähän päivään -yhteenveto'!A35)","v":""},{"$f":"IF(ISBLANK('Vuosi tähän päivään -yhteenveto'!B35),\"\",'Vuosi tähän päivään -yhteenveto'!B35)","v":""},0,0,0]
[{"$f":"IF(ISBLANK('Vuosi tähän päivään -yhteenveto'!A36),\"\",'Vuosi tähän päivään -yhteenveto'!A36)","v":""},{"$f":"IF(ISBLANK('Vuosi tähän päivään -yhteenveto'!B36),\"\",'Vuosi tähän päivään -yhteenveto'!B36)","v":""},0,0,0]

{"sheet":"4. n.","index":4,"n_rows":36,"n_cols":97,"rows_kept":36,"merged":[[3,0,3,6]]}
[{"$f":"Yrityksen_nimi","v":"Yrityksen nimi"}]
["Osallistumisen seuranta, 4. neljännes"]
["Päivämäärä"]
[{"$f":"Yrityksen_nimi","v":"Yrityksen nimi"},{"$nulls":6},"LUOTTAMUKSELLINEN"]
["Sukunimi","Etunimi","Lomalla","Henkilökohtaiset","Sairaana","1.10.","2.10.","3.10.","4.10.","5.10.","6.10.","7.10.","8.10.","9.10.","10.10.","11.10.","12.10.","13.10.","14.10.","15.10.","16.10.","17.10.","18.10.","19.10.","20.10.","21.10.","22.10.","23.10.","24.10.","25.10.","26.10.","27.10.","28.10.","29.10.","30.10.","31.10.","1.11.","2.11.","3.11.","4.11.","5.11.","6.11.","7.11.","8.11.","9.11.","10.11.","11.11.","12.11.","13.11.","14.11.","15.11.","16.11.","17.11.","18.11.","19.11.","20.11.","21.11.","22.11.","23.11.","24.11.","25.11.","26.11.","27.11.","28.11.","29.11.","30.11.","1.12.","2.12.","3.12.","4.12.","5.12.","6.12.","7.12.","8.12.","9.12.","10.12.","11.12.","12.12.","13.12.","14.12.","15.12.","16.12.","17.12.","18.12.","19.12.","20.12.","21.12.","22.12.","23.12.","24.12.","25.12.","26.12.","27.12.","28.12.","29.12.","30.12.","31.12."]
[{"$f":"IF(ISBLANK('Vuosi tähän päivään -yhteenveto'!A6),\"\",'Vuosi tähän päivään -yhteenveto'!A6)","v":"Sukunimi"},{"$f":"IF(ISBLANK('Vuosi tähän päivään -yhteenveto'!B6),\"\",'Vuosi tähän päivään -yhteenveto'!B6)","v":"Etunimi"},{"$f":"COUNTIF($F6:$CS6, \"L\")","v":0},{"$f":"COUNTIF($F6:CS6, \"H\")","v":0},{"$f":"COUNTIF($F6:CS6, \"S\")","v":0}]
[{"$f":"IF(ISBLANK('Vuosi tähän päivään -yhteenveto'!A7),\"\",'Vuosi tähän päivään -yhteenveto'!A7)","v":""},{"$f":"IF(ISBLANK('Vuosi tähän päivään -yhteenveto'!B7),\"\",'Vuosi tähän päivään -yhteenveto'!B7)","v":""},0,{"$f":"COUNTIF($F7:CS7, \"H\")","v":0},{"$f":"COUNTIF($F7:CS7, \"S\")","v":0}]
[{"$f":"IF(ISBLANK('Vuosi tähän päivään -yhteenveto'!A8),\"\",'Vuosi tähän päivään -yhteenveto'!A8)","v":""},{"$f":"IF(ISBLANK('Vuosi tähän päivään -yhteenveto'!B8),\"\",'Vuosi tähän päivään -yhteenveto'!B8)","v":""},0,{"$f":"COUNTIF($F8:CS8, \"H\")","v":0},{"$f":"COUNTIF($F8:CS8, \"S\")","v":0}]
[{"$f":"IF(ISBLANK('Vuosi tähän päivään -yhteenveto'!A9),\"\",'Vuosi tähän päivään -yhteenveto'!A9)","v":""},{"$f":"IF(ISBLANK('Vuosi tähän päivään -yhteenveto'!B9),\"\",'Vuosi tähän päivään -yhteenveto'!B9)","v":""},0,{"$f":"COUNTIF($F9:CS9, \"H\")","v":0},{"$f":"COUNTIF($F9:CS9, \"S\")","v":0}]
[{"$f":"IF(ISBLANK('Vuosi tähän päivään -yhteenveto'!A10),\"\",'Vuosi tähän päivään -yhteenveto'!A10)","v":""},{"$f":"IF(ISBLANK('Vuosi tähän päivään -yhteenveto'!B10),\"\",'Vuosi tähän päivään -yhteenveto'!B10)","v":""},0,{"$f":"COUNTIF($F10:CS10, \"H\")","v":0},{"$f":"COUNTIF($F10:CS10, \"S\")","v":0}]
[{"$f":"IF(ISBLANK('Vuosi tähän päivään -yhteenveto'!A11),\"\",'Vuosi tähän päivään -yhteenveto'!A11)","v":""},{"$f":"IF(ISBLANK('Vuosi tähän päivään -yhteenveto'!B11),\"\",'Vuosi tähän päivään -yhteenveto'!B11)","v":""},0,{"$f":"COUNTIF($F11:CS11, \"H\")","v":0},{"$f":"COUNTIF($F11:CS11, \"S\")","v":0}]
[{"$f":"IF(ISBLANK('Vuosi tähän päivään -yhteenveto'!A12),\"\",'Vuosi tähän päivään -yhteenveto'!A12)","v":""},{"$f":"IF(ISBLANK('Vuosi tähän päivään -yhteenveto'!B12),\"\",'Vuosi tähän päivään -yhteenveto'!B12)","v":""},0,{"$f":"COUNTIF($F12:CS12, \"H\")","v":0},{"$f":"COUNTIF($F12:CS12, \"S\")","v":0}]
[{"$f":"IF(ISBLANK('Vuosi tähän päivään -yhteenveto'!A13),\"\",'Vuosi tähän päivään -yhteenveto'!A13)","v":""},{"$f":"IF(ISBLANK('Vuosi tähän päivään -yhteenveto'!B13),\"\",'Vuosi tähän päivään -yhteenveto'!B13)","v":""},0,{"$f":"COUNTIF($F13:CS13, \"H\")","v":0},{"$f":"COUNTIF($F13:CS13, \"S\")","v":0}]
[{"$f":"IF(ISBLANK('Vuosi tähän päivään -yhteenveto'!A14),\"\",'Vuosi tähän päivään -yhteenveto'!A14)","v":""},{"$f":"IF(ISBLANK('Vuosi tähän päivään -yhteenveto'!B14),\"\",'Vuosi tähän päivään -yhteenveto'!B14)","v":""},0,{"$f":"COUNTIF($F14:CS14, \"H\")","v":0},{"$f":"COUNTIF($F14:CS14, \"S\")","v":0}]
[{"$f":"IF(ISBLANK('Vuosi tähän päivään -yhteenveto'!A15),\"\",'Vuosi tähän päivään -yhteenveto'!A15)","v":""},{"$f":"IF(ISBLANK('Vuosi tähän päivään -yhteenveto'!B15),\"\",'Vuosi tähän päivään -yhteenveto'!B15)","v":""},0,{"$f":"COUNTIF($F15:CS15, \"H\")","v":0},{"$f":"COUNTIF($F15:CS15, \"S\")","v":0}]
[{"$f":"IF(ISBLANK('Vuosi tähän päivään -yhteenveto'!A16),\"\",'Vuosi tähän päivään -yhteenveto'!A16)","v":""},{"$f":"IF(ISBLANK('Vuosi tähän päivään -yhteenveto'!B16),\"\",'Vuosi tähän päivään -yhteenveto'!B16)","v":""},0,{"$f":"COUNTIF($F16:CS16, \"H\")","v":0},{"$f":"COUNTIF($F16:CS16, \"S\")","v":0}]
[{"$f":"IF(ISBLANK('Vuosi tähän päivään -yhteenveto'!A17),\"\",'Vuosi tähän päivään -yhteenveto'!A17)","v":""},{"$f":"IF(ISBLANK('Vuosi tähän päivään -yhteenveto'!B17),\"\",'Vuosi tähän päivään -yhteenveto'!B17)","v":""},0,{"$f":"COUNTIF($F17:CS17, \"H\")","v":0},{"$f":"COUNTIF($F17:CS17, \"S\")","v":0}]
[{"$f":"IF(ISBLANK('Vuosi tähän päivään -yhteenveto'!A18),\"\",'Vuosi tähän päivään -yhteenveto'!A18)","v":""},{"$f":"IF(ISBLANK('Vuosi tähän päivään -yhteenveto'!B18),\"\",'Vuosi tähän päivään -yhteenveto'!B18)","v":""},0,{"$f":"COUNTIF($F18:CS18, \"H\")","v":0},{"$f":"COUNTIF($F18:CS18, \"S\")","v":0}]
[{"$f":"IF(ISBLANK('Vuosi tähän päivään -yhteenveto'!A19),\"\",'Vuosi tähän päivään -yhteenveto'!A19)","v":""},{"$f":"IF(ISBLANK('Vuosi tähän päivään -yhteenveto'!B19),\"\",'Vuosi tähän päivään -yhteenveto'!B19)","v":""},0,{"$f":"COUNTIF($F19:CS19, \"H\")","v":0},{"$f":"COUNTIF($F19:CS19, \"S\")","v":0}]
[{"$f":"IF(ISBLANK('Vuosi tähän päivään -yhteenveto'!A20),\"\",'Vuosi tähän päivään -yhteenveto'!A20)","v":""},{"$f":"IF(ISBLANK('Vuosi tähän päivään -yhteenveto'!B20),\"\",'Vuosi tähän päivään -yhteenveto'!B20)","v":""},0,{"$f":"COUNTIF($F20:CS20, \"H\")","v":0},{"$f":"COUNTIF($F20:CS20, \"S\")","v":0}]
[{"$f":"IF(ISBLANK('Vuosi tähän päivään -yhteenveto'!A21),\"\",'Vuosi tähän päivään -yhteenveto'!A21)","v":""},{"$f":"IF(ISBLANK('Vuosi tähän päivään -yhteenveto'!B21),\"\",'Vuosi tähän päivään -yhteenveto'!B21)","v":""},0,{"$f":"COUNTIF($F21:CS21, \"H\")","v":0},{"$f":"COUNTIF($F21:CS21, \"S\")","v":0}]
[{"$f":"IF(ISBLANK('Vuosi tähän päivään -yhteenveto'!A22),\"\",'Vuosi tähän päivään -yhteenveto'!A22)","v":""},{"$f":"IF(ISBLANK('Vuosi tähän päivään -yhteenveto'!B22),\"\",'Vuosi tähän päivään -yhteenveto'!B22)","v":""},0,{"$f":"COUNTIF($F22:CS22, \"H\")","v":0},{"$f":"COUNTIF($F22:CS22, \"S\")","v":0}]
[{"$f":"IF(ISBLANK('Vuosi tähän päivään -yhteenveto'!A23),\"\",'Vuosi tähän päivään -yhteenveto'!A23)","v":""},{"$f":"IF(ISBLANK('Vuosi tähän päivään -yhteenveto'!B23),\"\",'Vuosi tähän päivään -yhteenveto'!B23)","v":""},0,{"$f":"COUNTIF($F23:CS23, \"H\")","v":0},{"$f":"COUNTIF($F23:CS23, \"S\")","v":0}]
[{"$f":"IF(ISBLANK('Vuosi tähän päivään -yhteenveto'!A24),\"\",'Vuosi tähän päivään -yhteenveto'!A24)","v":""},{"$f":"IF(ISBLANK('Vuosi tähän päivään -yhteenveto'!B24),\"\",'Vuosi tähän päivään -yhteenveto'!B24)","v":""},0,{"$f":"COUNTIF($F24:CS24, \"H\")","v":0},{"$f":"COUNTIF($F24:CS24, \"S\")","v":0}]
[{"$f":"IF(ISBLANK('Vuosi tähän päivään -yhteenveto'!A25),\"\",'Vuosi tähän päivään -yhteenveto'!A25)","v":""},{"$f":"IF(ISBLANK('Vuosi tähän päivään -yhteenveto'!B25),\"\",'Vuosi tähän päivään -yhteenveto'!B25)","v":""},0,{"$f":"COUNTIF($F25:CS25, \"H\")","v":0},{"$f":"COUNTIF($F25:CS25, \"S\")","v":0}]
[{"$f":"IF(ISBLANK('Vuosi tähän päivään -yhteenveto'!A26),\"\",'Vuosi tähän päivään -yhteenveto'!A26)","v":""},{"$f":"IF(ISBLANK('Vuosi tähän päivään -yhteenveto'!B26),\"\",'Vuosi tähän päivään -yhteenveto'!B26)","v":""},0,{"$f":"COUNTIF($F26:CS26, \"H\")","v":0},{"$f":"COUNTIF($F26:CS26, \"S\")","v":0}]
[{"$f":"IF(ISBLANK('Vuosi tähän päivään -yhteenveto'!A27),\"\",'Vuosi tähän päivään -yhteenveto'!A27)","v":""},{"$f":"IF(ISBLANK('Vuosi tähän päivään -yhteenveto'!B27),\"\",'Vuosi tähän päivään -yhteenveto'!B27)","v":""},0,{"$f":"COUNTIF($F27:CS27, \"H\")","v":0},{"$f":"COUNTIF($F27:CS27, \"S\")","v":0}]
[{"$f":"IF(ISBLANK('Vuosi tähän päivään -yhteenveto'!A28),\"\",'Vuosi tähän päivään -yhteenveto'!A28)","v":""},{"$f":"IF(ISBLANK('Vuosi tähän päivään -yhteenveto'!B28),\"\",'Vuosi tähän päivään -yhteenveto'!B28)","v":""},0,{"$f":"COUNTIF($F28:CS28, \"H\")","v":0},{"$f":"COUNTIF($F28:CS28, \"S\")","v":0}]
[{"$f":"IF(ISBLANK('Vuosi tähän päivään -yhteenveto'!A29),\"\",'Vuosi tähän päivään -yhteenveto'!A29)","v":""},{"$f":"IF(ISBLANK('Vuosi tähän päivään -yhteenveto'!B29),\"\",'Vuosi tähän päivään -yhteenveto'!B29)","v":""},0,{"$f":"COUNTIF($F29:CS29, \"H\")","v":0},{"$f":"COUNTIF($F29:CS29, \"S\")","v":0}]
[{"$f":"IF(ISBLANK('Vuosi tähän päivään -yhteenveto'!A30),\"\",'Vuosi tähän päivään -yhteenveto'!A30)","v":""},{"$f":"IF(ISBLANK('Vuosi tähän päivään -yhteenveto'!B30),\"\",'Vuosi tähän päivään -yhteenveto'!B30)","v":""},0,{"$f":"COUNTIF($F30:CS30, \"H\")","v":0},{"$f":"COUNTIF($F30:CS30, \"S\")","v":0}]
[{"$f":"IF(ISBLANK('Vuosi tähän päivään -yhteenveto'!A31),\"\",'Vuosi tähän päivään -yhteenveto'!A31)","v":""},{"$f":"IF(ISBLANK('Vuosi tähän päivään -yhteenveto'!B31),\"\",'Vuosi tähän päivään -yhteenveto'!B31)","v":""},0,{"$f":"COUNTIF($F31:CS31, \"H\")","v":0},{"$f":"COUNTIF($F31:CS31, \"S\")","v":0}]
[{"$f":"IF(ISBLANK('Vuosi tähän päivään -yhteenveto'!A32),\"\",'Vuosi tähän päivään -yhteenveto'!A32)","v":""},{"$f":"IF(ISBLANK('Vuosi tähän päivään -yhteenveto'!B32),\"\",'Vuosi tähän päivään -yhteenveto'!B32)","v":""},0,{"$f":"COUNTIF($F32:CS32, \"H\")","v":0},{"$f":"COUNTIF($F32:CS32, \"S\")","v":0}]
[{"$f":"IF(ISBLANK('Vuosi tähän päivään -yhteenveto'!A33),\"\",'Vuosi tähän päivään -yhteenveto'!A33)","v":""},{"$f":"IF(ISBLANK('Vuosi tähän päivään -yhteenveto'!B33),\"\",'Vuosi tähän päivään -yhteenveto'!B33)","v":""},0,{"$f":"COUNTIF($F33:CS33, \"H\")","v":0},{"$f":"COUNTIF($F33:CS33, \"S\")","v":0}]
[{"$f":"IF(ISBLANK('Vuosi tähän päivään -yhteenveto'!A34),\"\",'Vuosi tähän päivään -yhteenveto'!A34)","v":""},{"$f":"IF(ISBLANK('Vuosi tähän päivään -yhteenveto'!B34),\"\",'Vuosi tähän päivään -yhteenveto'!B34)","v":""},0,{"$f":"COUNTIF($F34:CS34, \"H\")","v":0},{"$f":"COUNTIF($F34:CS34, \"S\")","v":0}]
[{"$f":"IF(ISBLANK('Vuosi tähän päivään -yhteenveto'!A35),\"\",'Vuosi tähän päivään -yhteenveto'!A35)","v":""},{"$f":"IF(ISBLANK('Vuosi tähän päivään -yhteenveto'!B35),\"\",'Vuosi tähän päivään -yhteenveto'!B35)","v":""},0,{"$f":"COUNTIF($F35:CS35, \"H\")","v":0},{"$f":"COUNTIF($F35:CS35, \"S\")","v":0}]
[{"$f":"IF(ISBLANK('Vuosi tähän päivään -yhteenveto'!A36),\"\",'Vuosi tähän päivään -yhteenveto'!A36)","v":""},{"$f":"IF(ISBLANK('Vuosi tähän päivään -yhteenveto'!B36),\"\",'Vuosi tähän päivään -yhteenveto'!B36)","v":""},0,{"$f":"COUNTIF($F36:CS36, \"H\")","v":0},{"$f":"COUNTIF($F36:CS36, \"S\")","v":0}]